fUST/lending_fUST_20251102
["ID","MTS","AMOUNT","RATE_DAILY","PERIOD"]
[392860000,1762075841715,-151.0,0.00023444,7]
[392860001,1762075841724,-151.0,0.00023444,7]
[392860002,1762075841733,-151.0,0.00023444,7]
[392860003,1762075841743,-151.0,0.00023444,7]
[392860004,1762075841752,-151.0,0.00023444,7]
[392860005,1762075841761,-151.0,0.00023444,7]
[392860006,1762075841770,-151.0,0.00023444,7]
[392860007,1762075841779,-151.0,0.00023444,7]
[392860008,1762075841788,-151.468668,0.00023444,7]
[392860009,1762075841798,-151.0,0.00023444,7]
[392860010,1762075841807,-151.468668,0.00023444,7]
[392860011,1762075841816,-151.0,0.00023444,7]
[392860012,1762075841825,-287.920677,0.00023444,7]
[392860013,1762075841835,-151.468668,0.00023444,7]
[392860014,1762075841844,-151.468668,0.00023444,7]
[392860015,1762075841854,-151.468668,0.00023444,7]
[392860016,1762075841863,-151.468668,0.00023444,7]
[392860017,1762075841873,-151.468668,0.00023444,7]
[392860018,1762075841882,-151.468668,0.00023444,7]
[392860019,1762075841892,-151.468668,0.00023444,7]
[392860020,1762075841902,-151.468668,0.00023444,7]
[392860021,1762075841911,-151.468668,0.00023444,7]
[392860022,1762075841920,-151.468668,0.00023444,7]
[392860023,1762075841929,-151.468668,0.00023444,7]
[392860024,1762075841938,-151.468668,0.00023444,7]
[392860025,1762075841948,-151.468668,0.00023444,7]
[392860026,1762075841957,-151.468668,0.00023444,7]
[392860027,1762075841966,-151.468668,0.00023444,7]
[392860028,1762075841977,-151.468668,0.00023444,7]
[392860029,1762075841986,-151.468668,0.00023444,7]
[392860030,1762075841995,-151.46867,0.00023444,7]
[392860031,1762075842005,-151.0,0.00023444,7]
[392860032,1762075842014,-151.0,0.00023444,7]
[392860033,1762075842023,-151.0,0.00023444,7]
[392860034,1762075842033,-151.0,0.00023444,7]
[392860035,1762075842043,-151.0,0.00023444,7]
[392860036,1762075842053,-275.75669,0.00023444,7]
[392860037,1762075842063,-4553.680347,0.00023444,7]
[392860038,1762075842073,-4553.680347,0.00023444,7]
[392860039,1762075842084,-4553.680347,0.00023444,7]
[392860040,1762075842094,-4553.680347,0.00023444,7]
[392860041,1762075842104,-151.0,0.00023444,7]
[392860042,1762075842114,-4553.680347,0.00023444,7]
[392860043,1762075842127,-4553.680347,0.00023444,7]
[392860044,1762075842137,-151.0,0.00023444,7]
[392860045,1762075842147,-4553.680347,0.00023444,7]
[392860046,1762075842156,-151.0,0.00023444,7]
[392860047,1762075842165,-151.0,0.00023444,7]
[392860048,1762075842175,-151.0,0.00023444,7]
[392860049,1762075842184,-151.0,0.00023444,7]
[392860050,1762075842194,-181.379572,0.00023444,7]
[392860051,1762075842204,-685000.0,0.00023444,2]
[392860052,1762075842213,-500.0,0.00023444,7]
[392860053,1762075842223,-342.0,0.00023471,2]
[392860054,1762075842232,-343.87151395,0.00023473,2]
[392860055,1762075842241,-500.0,0.00023473,2]
[392860056,1762075842251,-500.0,0.00023473,2]
[392860057,1762075842261,-500.0,0.00023473,2]
[392860058,1762075842272,-501.70803607,0.00023473,2]
[392860059,1762075842281,-554.59571727,0.00023473,2]
[392860060,1762075842291,-501.55675906,0.00023473,2]
[392860061,1762075842300,-500.0,0.00023473,2]
[392860062,1762075842310,-500.0,0.00023473,2]
[392860063,1762075842319,-221.17717714,0.00023473,2]
[392860064,1762075842328,-500.0,0.00023473,2]
[392860065,1762075842338,-500.0,0.00023473,2]
[392860066,1762075842347,-294.5334864,0.00023473,2]
[392860067,1762075842356,-500.0,0.00023473,2]
[392860068,1762075842367,-500.0,0.00023473,2]
[392860069,1762075842376,-150.0,0.00023473,2]
[392860070,1762075842385,-502.10980136,0.00023473,2]
[392860071,1762075842394,-503.17034432,0.00023473,2]
[392860072,1762075842404,-500.0,0.00023473,2]
[392860073,1762075842413,-500.0,0.00023473,2]
[392860074,1762075842423,-500.0,0.00023473,2]
[392860075,1762075842435,-500.0,0.00023473,2]
[392860076,1762075842445,-500.0,0.00023473,2]
[392860077,1762075842454,-500.0,0.00023473,2]
[392860078,1762075842466,-500.0,0.00023498,2]
[392860079,1762075842476,-500.0,0.00023498,2]
[392860080,1762075842485,-500.0,0.00023499,7]
[392860081,1762075842494,-262.50019447,0.00023499,7]
[392860082,1762075842504,-86145.3420613,0.00023499,2]
[392860083,1762075842607,-151.0,0.00023499,7]
[392860084,1762075842616,-151.171734,0.00023499,7]
[392860085,1762075842626,-151.0,0.00023499,7]
[392860086,1762075842635,-151.0,0.00023499,7]
[392860087,1762075842646,-154.137866,0.00023499,7]
[392860088,1762075842655,-782.2452103,0.00023499,2]
[392860089,1762075842664,-153.925059,0.00023499,7]
[392860090,1762075842674,-151.0,0.00023499,7]
[392860091,1762075842683,-151.0,0.00023499,7]
[392860092,1762075842692,-151.0,0.00023499,7]
[392860093,1762075842701,-151.0,0.00023499,7]
[392860094,1762075842711,-151.0,0.00023499,7]
[392860095,1762075842721,-151.0,0.00023499,7]
[392860096,1762075842731,-279.542484,0.00023499,7]
[392860097,1762075842739,-151.0,0.00023499,7]
[392860098,1762075842748,-151.0,0.00023499,7]
[392860099,1762075842757,-151.0,0.00023499,7]
[392860100,1762075842767,-151.0,0.00023499,7]
[392860101,1762075842776,-159.320101,0.00023499,7]
[392860102,1762075842785,-151.0,0.00023499,7]
[392860103,1762075842795,-151.701652,0.00023499,7]
[392860104,1762075842804,-151.0,0.00023499,7]
[392860105,1762075842813,-151.0,0.00023499,7]
[392860106,1762075842822,-151.0,0.00023499,7]
[392860107,1762075842832,-500.0,0.00023499,2]
[392860108,1762075842841,-155.248819,0.00023499,7]
[392860109,1762075842850,-151.0,0.00023499,7]
[392860111,1762075842859,-151.0,0.00023499,7]
[392860113,1762075842868,-151.0,0.00023499,7]
[392860115,1762075842877,-151.0,0.00023499,7]
[392860117,1762075842886,-151.0,0.00023499,7]
[392860118,1762075842895,-151.0,0.00023499,7]
[392860119,1762075842904,-151.0,0.00023499,7]
[392860120,1762075842913,-151.0,0.00023499,7]
[392860121,1762075842922,-171.786229,0.00023499,7]
[392860122,1762075842932,-151.0,0.00023499,7]
[392860123,1762075842941,-151.0,0.00023499,7]
[392860124,1762075842950,-151.0,0.00023499,7]
[392860125,1762075842959,-151.0,0.00023499,7]
[392860126,1762075842969,-151.0,0.00023499,7]
[392860127,1762075842979,-257.548855,0.00023499,7]
[392860128,1762075842988,-151.000003,0.00023499,7]
[392860129,1762075842999,-151.0,0.00023499,7]
[392860130,1762075843008,-151.0,0.00023499,7]
[392860131,1762075843018,-157.981188,0.00023499,7]
[392860132,1762075843027,-151.0,0.00023499,7]
[392860133,1762075843036,-151.0,0.00023499,7]
[392860134,1762075843045,-151.0,0.00023499,7]
[392860135,1762075843055,-151.0,0.00023499,7]
[392860136,1762075843064,-271.082504,0.00023499,7]
[392860137,1762075843073,-245.5,0.00023499,2]
[392860138,1762075843082,-151.0,0.00023499,7]
[392860139,1762075843091,-151.0,0.00023499,7]
[392860141,1762075843102,-151.0,0.00023499,7]
[392860143,1762075843112,-151.0,0.00023499,7]
[392860145,1762075843125,-371.030955,0.00023499,7]
[392860147,1762075843136,-371.030955,0.00023499,7]
[392860149,1762075843145,-371.030955,0.00023499,7]
[392860151,1762075843155,-371.030955,0.00023499,7]
[392860153,1762075843166,-371.030955,0.00023499,7]
[392860155,1762075843176,-371.030955,0.00023499,7]
[392860157,1762075843188,-371.030955,0.00023499,7]
[392860159,1762075843199,-371.030955,0.00023499,7]
[392860161,1762075843209,-371.030955,0.00023499,7]
[392860163,1762075843218,-371.030955,0.00023499,7]
[392860165,1762075843228,-371.030955,0.00023499,7]
[392860167,1762075843237,-371.030955,0.00023499,7]
[392860169,1762075843247,-371.030955,0.00023499,7]
[392860171,1762075843256,-371.030955,0.00023499,7]
[392860173,1762075843265,-371.030955,0.00023499,7]
[392860176,1762075843275,-371.030961,0.00023499,7]
[392860178,1762075843284,-157.537061,0.00023499,7]
[392860180,1762075843293,-151.0,0.00023499,7]
[392860182,1762075843304,-151.0,0.00023499,7]
[392860184,1762075843315,-151.0,0.00023499,7]
[392860186,1762075843324,-151.0,0.00023499,7]
[392860188,1762075843334,-151.0,0.00023499,7]
[392860191,1762075843344,-208.909769,0.00023499,7]
[392860192,1762075843353,-151.0,0.00023499,7]
[392860193,1762075843362,-151.0,0.00023499,7]
[392860194,1762075843371,-151.0,0.00023499,7]
[392860195,1762075843381,-151.0,0.00023499,7]
[392860196,1762075843391,-151.0,0.00023499,7]
[392860197,1762075843400,-151.0,0.00023499,7]
[392860198,1762075843411,-151.0,0.00023499,7]
[392860199,1762075843421,-151.0,0.00023499,7]
[392860200,1762075843431,-151.0,0.00023499,7]
[392860201,1762075843441,-151.0,0.00023499,7]
[392860202,1762075843451,-151.0,0.00023499,7]
[392860203,1762075843460,-151.0,0.00023499,7]
[392860204,1762075843469,-151.0,0.00023499,7]
[392860205,1762075843479,-151.0,0.00023499,7]
[392860206,1762075843488,-158.384799,0.00023499,7]
[392860207,1762075843498,-151.0,0.00023499,2]
[392860208,1762075843507,-151.0,0.00023499,2]
[392860209,1762075843517,-500.0,0.00023499,2]
[392860210,1762075843527,-218.21184161,0.00023499,2]
[392860211,1762075843536,-151.0,0.00023499,2]
[392860212,1762075843546,-151.0,0.00023499,7]
[392860213,1762075843555,-151.0,0.00023499,7]
[392860214,1762075843564,-151.0,0.00023499,7]
[392860215,1762075843574,-151.0,0.00023499,7]
[392860216,1762075843583,-151.0,0.00023499,7]
[392860217,1762075843592,-202.46368,0.00023499,7]
[392860218,1762075843602,-193.494895,0.00023499,7]
[392860219,1762075843611,-151.0,0.00023499,7]
[392860220,1762075843620,-151.0,0.00023499,7]
[392860221,1762075843630,-151.0,0.00023499,7]
[392860222,1762075843639,-151.0,0.00023499,7]
[392860223,1762075843649,-151.0,0.00023499,7]
[392860224,1762075843658,-151.0,0.00023499,7]
[392860225,1762075843667,-151.0,0.00023499,7]
[392860226,1762075843678,-151.0,0.00023499,7]
[392860227,1762075843688,-151.0,0.00023499,7]
[392860228,1762075843697,-151.0,0.00023499,7]
[392860229,1762075843707,-151.0,0.00023499,7]
[392860230,1762075843716,-151.0,0.00023499,7]
[392860231,1762075843725,-257.464734,0.00023499,7]
[392860232,1762075843735,-500.0,0.00023499,2]
[392860233,1762075843745,-151.0,0.00023499,7]
[392860234,1762075843754,-151.0,0.00023499,7]
[392860235,1762075843763,-151.0,0.00023499,7]
[392860236,1762075843772,-157.113491,0.00023499,7]
[392860237,1762075843781,-151.0,0.00023499,7]
[392860238,1762075843791,-190.064187,0.00023499,7]
[392860239,1762075843800,-252.13712786,0.00023499,2]
[392860240,1762075843809,-500.0,0.00023499,2]
[392860241,1762075843819,-319.172367,0.00023499,7]
[392860242,1762075843828,-319.172367,0.00023499,7]
[392860243,1762075843837,-319.172367,0.00023499,7]
[392860244,1762075843846,-319.172367,0.00023499,7]
[392860245,1762075843855,-319.172367,0.00023499,7]
[392860246,1762075843864,-319.172367,0.00023499,7]
[392860247,1762075843874,-319.172367,0.00023499,7]
[392860248,1762075843883,-319.172367,0.00023499,7]
[392860249,1762075843892,-319.172367,0.00023499,7]
[392860250,1762075843902,-319.172367,0.00023499,7]
[392860251,1762075843911,-319.172367,0.00023499,7]
[392860252,1762075843920,-319.172374,0.00023499,7]
[392860253,1762075843930,-151.0,0.00023499,7]
[392860254,1762075843939,-151.0,0.00023499,7]
[392860255,1762075843948,-151.0,0.00023499,7]
[392860256,1762075843958,-151.0,0.00023499,7]
[392860257,1762075843967,-151.0,0.00023499,7]
[392860258,1762075843977,-151.0,0.00023499,7]
[392860259,1762075843987,-151.0,0.00023499,7]
[392860260,1762075843997,-151.0,0.00023499,7]
[392860261,1762075844007,-151.0,0.00023499,7]
[392860262,1762075844019,-151.0,0.00023499,7]
[392860263,1762075844028,-151.0,0.00023499,7]
[392860264,1762075844037,-151.0,0.00023499,7]
[392860265,1762075844046,-151.0,0.00023499,7]
[392860266,1762075844055,-151.0,0.00023499,7]
[392860267,1762075844064,-151.0,0.00023499,7]
[392860268,1762075844074,-151.0,0.00023499,7]
[392860269,1762075844083,-151.0,0.00023499,7]
[392860270,1762075844092,-151.0,0.00023499,7]
[392860271,1762075844101,-298.434364,0.00023499,7]
[392860272,1762075844111,-156.869018,0.00023499,7]
[392860273,1762075844121,-165.620557,0.00023499,7]
[392860274,1762075844131,-165.620557,0.00023499,7]
[392860275,1762075844140,-165.620557,0.00023499,7]
[392860276,1762075844152,-321.305752,0.00023499,2]
[392860277,1762075844162,-523.676627,0.00023499,7]
[392860278,1762075844171,-523.676627,0.00023499,7]
[392860279,1762075844180,-523.676627,0.00023499,7]
[392860280,1762075844190,-321.305752,0.00023499,2]
[392860281,1762075844199,-523.676627,0.00023499,7]
[392860282,1762075844209,-523.676627,0.00023499,7]
[392860283,1762075844218,-321.305752,0.00023499,2]
[392860284,1762075844227,-523.676627,0.00023499,7]
[392860285,1762075844237,-165.620557,0.00023499,7]
[392860286,1762075844246,-151.0,0.00023499,7]
[392860287,1762075844255,-165.620557,0.00023499,7]
[392860288,1762075844265,-151.0,0.00023499,7]
[392860289,1762075844275,-165.620557,0.00023499,7]
[392860290,1762075844284,-523.676627,0.00023499,7]
[392860291,1762075844293,-151.0,0.00023499,7]
[392860292,1762075844302,-321.305752,0.00023499,2]
[392860293,1762075844312,-523.676627,0.00023499,7]
[392860294,1762075844321,-321.305752,0.00023499,2]
[392860295,1762075844330,-523.676627,0.00023499,7]
[392860296,1762075844340,-321.305752,0.00023499,2]
[392860297,1762075844349,-165.620557,0.00023499,7]
[392860298,1762075844359,-158.971367,0.00023499,7]
[392860299,1762075844369,-165.620557,0.00023499,7]
[392860300,1762075844378,-165.620557,0.00023499,7]
[392860301,1762075844387,-523.676627,0.00023499,7]
[392860302,1762075844397,-321.305752,0.00023499,2]
[392860303,1762075844405,-523.676627,0.00023499,7]
[392860304,1762075844416,-321.305752,0.00023499,2]
[392860305,1762075844424,-523.676631,0.00023499,7]
[392860306,1762075844434,-165.620557,0.00023499,7]
[392860307,1762075844443,-321.305752,0.00023499,2]
[392860308,1762075844452,-165.620557,0.00023499,7]
[392860309,1762075844461,-165.620551,0.00023499,7]
[392860310,1762075844471,-321.305752,0.00023499,2]
[392860311,1762075844480,-321.305752,0.00023499,2]
[392860312,1762075844489,-321.305757,0.00023499,2]
[392860313,1762075844499,-151.0,0.00023499,7]
[392860314,1762075844596,-151.0,0.00023499,7]
[392860315,1762075844607,-151.0,0.00023499,7]
[392860316,1762075844616,-151.0,0.00023499,7]
[392860317,1762075844626,-285.799762,0.00023499,7]
[392860318,1762075844635,-335.193251,0.00023499,7]
[392860319,1762075844644,-335.193251,0.00023499,7]
[392860320,1762075844654,-335.193251,0.00023499,7]
[392860321,1762075844663,-335.193251,0.00023499,7]
[392860322,1762075844673,-335.193251,0.00023499,7]
[392860323,1762075844683,-335.193251,0.00023499,7]
[392860324,1762075844693,-335.193251,0.00023499,7]
[392860325,1762075844704,-335.193251,0.00023499,7]
[392860326,1762075844714,-335.193251,0.00023499,7]
[392860327,1762075844725,-335.193251,0.00023499,7]
[392860328,1762075844735,-335.193251,0.00023499,7]
[392860329,1762075844745,-335.193248,0.00023499,7]
[392860330,1762075844755,-1516.391791,0.00023499,7]
[392860331,1762075844764,-151.0,0.00023499,7]
[392860332,1762075844774,-1516.391791,0.00023499,7]
[392860333,1762075844783,-1516.391791,0.00023499,7]
[392860334,1762075844792,-1516.39179972,0.00023499,7]
[392860335,1762075844802,-198.91101041,0.00023499,2]
[392860336,1762075844811,-151.0,0.00023499,7]
[392860337,1762075844820,-151.0,0.00023499,7]
[392860338,1762075844830,-151.0,0.00023499,7]
[392860339,1762075844839,-151.0,0.00023499,7]
[392860340,1762075844848,-151.0,0.00023499,7]
[392860341,1762075844857,-151.0,0.00023499,7]
[392860342,1762075844867,-151.0,0.00023499,7]
[392860343,1762075844876,-151.0,0.00023499,7]
[392860344,1762075844886,-151.0,0.00023499,7]
[392860345,1762075844897,-151.0,0.000235,8]
[392860346,1762075844907,-151.0,0.000235,5]
[392860347,1762075844917,-1758.9214452,0.00023501,2]
[392860348,1762075844927,-19387.8691447,0.00023504,2]
[392860349,1762075844936,-2560.3114824,0.00023504,2]
[392860350,1762075844945,-172.04135956,0.00023524,2]
[392860351,1762075844954,-170.3141421,0.00023535,3]
[392860352,1762075844964,-681.25656838,0.00023535,3]
[392860353,1762075844973,-376.8798249,0.00023535,3]
[392860354,1762075844982,-1507.51929959,0.00023535,3]
[392860355,1762075844993,-167.13557967,0.00023535,3]
[392860356,1762075845002,-738.42640194,0.00023535,3]
[392860357,1762075845011,-151.0,0.00023543,7]
[392860358,1762075845021,-151.0,0.00023543,7]
[392860359,1762075845031,-152.071494,0.00023543,7]
[392860360,1762075845040,-500.0,0.00023543,2]
[392860361,1762075845049,-500.9769299,0.00023543,2]
[392860362,1762075845058,-500.0,0.00023543,2]
[392860363,1762075845067,-500.0,0.00023543,2]
[392860364,1762075845076,-500.0,0.00023543,2]
[392860365,1762075845086,-151.0,0.00023543,7]
[392860366,1762075845097,-151.0,0.00023543,7]
[392860367,1762075845108,-200.0,0.00023543,3]
[392860368,1762075845118,-151.0,0.00023543,7]
[392860369,1762075845129,-151.0,0.00023543,7]
[392860370,1762075845141,-151.0,0.00023543,7]
[392860371,1762075845151,-151.0,0.00023543,7]
[392860372,1762075845160,-151.0,0.00023543,7]
[392860373,1762075845173,-151.0,0.00023543,7]
[392860374,1762075845182,-151.0,0.00023543,7]
[392860375,1762075845191,-203.914268,0.00023543,7]
[392860376,1762075845203,-151.0,0.00023543,7]
[392860377,1762075845213,-151.0,0.00023543,7]
[392860378,1762075845223,-151.0,0.00023543,7]
[392860379,1762075845232,-151.0,0.00023543,7]
[392860380,1762075845241,-500.0,0.00023544,2]
[392860381,1762075845250,-500.0,0.00023544,2]
[392860382,1762075845259,-500.0,0.00023544,2]
[392860383,1762075845269,-500.0,0.00023544,2]
[392860384,1762075845279,-500.0,0.00023544,2]
[392860385,1762075845288,-500.0,0.00023544,2]
[392860386,1762075845298,-284.1795606,0.00023544,2]
[392860387,1762075845307,-151.0,0.00023544,7]
[392860388,1762075845317,-151.0,0.00023544,7]
[392860389,1762075845326,-500.0,0.00023544,2]
[392860390,1762075845335,-500.0,0.00023544,2]
[392860391,1762075845344,-500.0,0.00023544,2]
[392860392,1762075845354,-500.0,0.00023544,2]
[392860393,1762075845363,-500.0,0.00023544,2]
[392860394,1762075845372,-500.0,0.00023544,2]
[392860395,1762075845381,-500.0,0.00023544,2]
[392860396,1762075845391,-500.0,0.00023544,2]
[392860397,1762075845401,-500.0,0.00023544,2]
[392860398,1762075845411,-500.0,0.00023544,2]
[392860399,1762075845421,-500.0,0.00023544,2]
[392860400,1762075845431,-500.0,0.00023544,2]
[392860401,1762075845441,-500.0,0.00023544,2]
[392860402,1762075845451,-500.0,0.00023544,2]
[392860403,1762075845460,-500.0,0.00023544,2]
[392860404,1762075845470,-500.0,0.00023544,2]
[392860405,1762075845479,-500.0,0.00023544,2]
[392860406,1762075845488,-255.47389012,0.00023544,2]
[392860407,1762075845497,-1000.0,0.00023544,2]
[392860408,1762075845506,-1000.0,0.00023544,2]
[392860409,1762075845518,-1000.0,0.00023544,2]
[392860410,1762075845527,-732.83,0.00023544,2]
[392860411,1762075845536,-500.0,0.00023544,2]
[392860412,1762075845546,-500.0,0.00023544,2]
[392860413,1762075845555,-500.0,0.00023544,2]
[392860414,1762075845564,-150.00000066,0.00023544,2]
[392860415,1762075845573,-151.0,0.00023545,7]
[392860416,1762075845582,-151.0,0.00023545,7]
[392860417,1762075845592,-270.047718,0.00023545,7]
[392860418,1762075845602,-284.0,0.0002355,2]
[392860419,1762075845611,-500.0,0.00023554,7]
[392860420,1762075845620,-151.0,0.00023554,2]
[392860421,1762075845629,-151.0,0.00023554,2]
[392860422,1762075845638,-500.0,0.00023554,2]
[392860423,1762075845647,-151.0,0.00023554,2]
[392860424,1762075845657,-500.0,0.00023554,2]
[392860425,1762075845666,-500.0,0.00023554,2]
[392860426,1762075845676,-284.0,0.00023555,2]
[392860427,1762075845685,-284.0,0.00023564,2]
[392860428,1762075845694,-500.94441425,0.00023573,2]
[392860429,1762075845703,-635.05896472,0.00023573,2]
[392860430,1762075845713,-423.46629371,0.00023573,2]
[392860431,1762075845723,-501.11072611,0.00023573,2]
[392860432,1762075845732,-645.4135177,0.00023573,2]
[392860433,1762075845742,-500.0,0.00023573,2]
[392860434,1762075845751,-502.54770843,0.00023573,2]
[392860435,1762075845761,-500.79978873,0.00023573,2]
[392860436,1762075845770,-397.08157078,0.00023573,2]
[392860437,1762075845779,-501.76283583,0.00023573,2]
[392860438,1762075845789,-502.53840674,0.00023573,2]
[392860439,1762075845798,-503.08059067,0.00023573,2]
[392860440,1762075845808,-501.26893894,0.00023573,2]
[392860441,1762075845817,-482.0672846,0.00023573,2]
[392860442,1762075845826,-500.0,0.00023573,2]
[392860443,1762075845835,-503.24461669,0.00023573,2]
[392860444,1762075845844,-500.0,0.00023573,2]
[392860445,1762075845854,-500.0,0.00023573,2]
[392860446,1762075845863,-151.0,0.00023573,7]
[392860447,1762075845872,-151.0,0.00023573,7]
[392860448,1762075845881,-191.84564194,0.00023573,7]
[392860449,1762075845890,-500.0,0.00023573,2]
[392860450,1762075845899,-151.0,0.000236,10]
[392860451,1762075845908,-151.0,0.000236,9]
[392860452,1762075845916,-500.0,0.00023608,7]
[392860453,1762075845925,-293.04974201,0.00023609,2]
[392860454,1762075845934,-151.0,0.00023609,2]
[392860455,1762075845944,-500.0,0.00023609,2]
[392860456,1762075845953,-198.0,0.00023609,2]
[392860457,1762075845962,-500.0,0.00023609,2]
[392860458,1762075845972,-500.0,0.00023609,2]
[392860459,1762075845981,-155.77756144,0.0002361,2]
[392860460,1762075845990,-287.0,0.0002362,2]
[392860461,1762075845999,-500.0,0.00023628,2]
[392860462,1762075846009,-20969.86738301,0.00023645,2]
[392860463,1762075846018,-770.36524837,0.00023657,2]
[392860464,1762075846027,-1369.53821932,0.00023657,2]
[392860465,1762075846036,-2137.76356422,0.00023657,2]
[392860466,1762075846046,-416.6346913,0.00023657,2]
[392860467,1762075846055,-330.35455652,0.00023657,2]
[392860468,1762075846064,-355.58550932,0.00023658,2]
[392860469,1762075846074,-640.05391677,0.00023658,2]
[392860470,1762075846083,-1136.73575619,0.00023658,2]
[392860471,1762075846094,-427.98069354,0.00023658,2]
[392860472,1762075846103,-307.46800883,0.00023658,2]
[392860473,1762075846113,-553.4424159,0.00023658,2]
[392860474,1762075846123,-982.91373063,0.00023658,2]
[392860475,1762075846135,-224.21419326,0.00023658,2]
[392860476,1762075846144,-403.58554787,0.00023658,2]
[392860477,1762075846154,-150.0,0.00023658,2]
[392860478,1762075846164,-500.0,0.00023663,7]
[392860479,1762075846174,-151.0,0.00023663,2]
[392860480,1762075846183,-500.0,0.00023663,2]
[392860481,1762075846193,-500.0,0.00023663,2]
[392860482,1762075846203,-500.0,0.00023663,2]
[392860483,1762075846212,-500.0,0.00023683,2]
[392860484,1762075846222,-390.0621198,0.00023692,2]
[392860485,1762075846232,-3484.09,0.000237,14]
[392860486,1762075846241,-500.0,0.00023718,7]
[392860487,1762075846251,-500.0,0.00023718,7]
[392860488,1762075846262,-282.37277212,0.00023718,2]
[392860489,1762075846271,-500.0,0.00023718,2]
[392860490,1762075846281,-500.0,0.00023718,2]
[392860491,1762075846290,-500.0,0.00023718,2]
[392860492,1762075846300,-4501.83094877,0.00023737,2]
[392860493,1762075846309,-500.0,0.00023737,2]
[392860494,1762075846318,-177.0,0.00023763,2]
[392860495,1762075846328,-7012.31731127,0.00023764,2]
[392860496,1762075846338,-358.97187652,0.00023773,2]
[392860497,1762075846347,-500.0,0.00023773,2]
[392860501,1762075846440,-500.0,0.00023773,2]
[392860502,1762075846450,-500.0,0.00023773,2]
[392860503,1762075846461,-506.11649179,0.00023773,2]
[392860504,1762075846470,-216.08278313,0.00023773,2]
[392860505,1762075846479,-500.0,0.00023773,2]
[392860506,1762075846488,-502.31625206,0.00023773,2]
[392860507,1762075846497,-164.12832077,0.00023773,2]
[392860509,1762075846507,-515.70850134,0.00023773,2]
[392860511,1762075846516,-502.07956742,0.00023773,2]
[392860512,1762075846526,-353.30301946,0.00023773,2]
[392860513,1762075846536,-500.0,0.00023773,2]
[392860514,1762075846545,-500.0,0.00023773,2]
[392860515,1762075846557,-500.0,0.00023773,2]
[392860516,1762075846566,-500.0,0.00023773,2]
[392860517,1762075846576,-500.0,0.00023773,2]
[392860518,1762075846586,-289.44799768,0.00023773,2]
[392860519,1762075846595,-500.0,0.00023773,2]
[392860520,1762075846605,-500.0,0.00023773,2]
[392860521,1762075846614,-509.34390371,0.00023773,2]
[392860522,1762075846623,-501.18465866,0.00023773,2]
[392860523,1762075846632,-500.0,0.00023773,2]
[392860524,1762075846641,-500.0,0.00023773,2]
[392860525,1762075846651,-500.0,0.00023773,2]
[392860526,1762075846661,-500.0,0.00023773,2]
[392860527,1762075846670,-500.0,0.00023773,2]
[392860528,1762075846679,-500.0,0.00023773,2]
[392860529,1762075846689,-500.0,0.00023773,2]
[392860530,1762075846699,-500.55138501,0.00023773,2]
[392860531,1762075846709,-500.0,0.00023773,2]
[392860532,1762075846718,-424.6748326,0.00023773,2]
[392860533,1762075846727,-500.0,0.00023773,2]
[392860534,1762075846736,-513.30931937,0.00023773,2]
[392860535,1762075846746,-500.0,0.00023773,2]